{"text_format":"1","workbook":"xlsx","n_sheets":3,"sheets":["Simulador Reg Trib. Aposentado","Tab IR Progressiva","Tab IR Regressiva"],"not_rendered":{"charts":0,"images":0,"macros":1,"external_links":0,"defined_names":2,"comments":0,"pivot_tables":0},"unopened":[],"bounds":{"document_bytes":16777216,"sheet_cells":100000,"rows_first":2000,"rows_last":500,"rows_between":2000,"halvings":0,"cell_chars":16384,"cell_head_chars":4096},"cells_cut":0,"cells_raw":0,"read":"whole","date_system":"1900"}

{"sheet":"Simulador Reg Trib. Aposentado","index":0,"n_rows":58,"n_cols":29,"rows_kept":58,"cut":false,"hidden":false,"merged":[[46,2,46,23],[6,11,6,14],[8,11,8,14],[29,2,29,23],[12,11,12,13],[10,11,10,13]]}
[]
[]
[null,null,"COMPARATIVO DE  CÁLCULO DE IR TABELA PROGRESSIVA    X    TABELA REGRESSIVA"]
[]
[null,"SEM VALOR LEGAL: PROJEÇÕES REALIZADAS COM DADOS FORNECIDOS PELO PARTICIPANTE"]
[null,null,"Dados a Preencher:"]
[null,null,"Digite o valor da sua aposentadoria no INSS"]
[]
[null,null,"Digite o valor do seu benefíco USIPREV ou COSIPREV"]
[]
[null,null,"Digite a idade atual"]
[]
[null,null,"Alíquota da Tabela Regressiva:",null,null,null,null,null,null,null,null,0.1]
[]
[null,null,"SIMULAÇÃO TABELA PROGRESSIVA - INSS E PREVIDÊNCIA USIMINAS"]
[]
[null,null,"INSS",null,null,null,null,null,null,null,"PREVIDÊNCIA USIMINAS",null,null,null,null,null,null,null,"INSS E PREVIDÊNCIA USIMINAS"]
[]
[null,null,"Aposentadoria INSS",null,null,null,null,{"$f":"$L$7","v":0},null,null,"Benefício USIPREV",null,null,null,null,{"$f":"$L$9","v":0},null,null,"Aposentadoria INSS ( 2 )",null,null,null,null,{"$f":"$L$7","v":0}]
[null,null,"Isenção 65 anos",null,null,null,null,{"$f":"IF(L11>=65,1903.98,0)","v":0},null,null,"Isenção 65 anos",null,null,null,null,{"$f":"H20","v":0},null,null,"Benefício USIPREV ( 1 )",null,null,null,null,{"$f":"$L$9","v":0}]
[null,null,"Desconto simplificado",null,null,null,null,{"$f":"'Tab IR Progressiva'!H16","v":564.79999999999995},null,null,null,null,null,null,null,null,null,null,"Renda Total  ( 1 + 2 )",null,null,null,null,{"$f":"X19+X20","v":0}]
[null,null,"(*) Dedução Padrão 20%",null,null,null,null,{"$f":"IF((H19*0.2)>=H23,H23,H19*0.2)","v":0},null,null,null,null,null,null,null,null,null,null,"Isenção 65 anos",null,null,null,null,{"$f":"H20","v":0}]
[null,null,"Dedução Máxima Permitida",null,null,null,null,1396.2,null,null,null,null,null,null,null,null,null,null,"Desconto simplificado",null,null,null,null,{"$f":"H21","v":564.79999999999995}]
[null,null,"Base Calculo IR Mensal",null,null,null,null,{"$f":"IF(L7=\"\",0,H19-H20-H21-H22)","v":0},null,null,"Base Calculo IR Mensal",null,null,null,null,{"$f":"P19-P20","v":0},null,null,"(*) Dedução Padrão 20%",null,null,null,null,{"$f":"IF((X21*0.2)>=X25,X25,X21*0.2)","v":0}]
[null,null,"IR Mensal - Progressivo",null,null,null,null,{"$f":"IF(H24=\"\",\"\",IF(H24>'Tab IR Progressiva'!$A$17,H24*'Tab IR Progressiva'!$C$17-'Tab IR Progressiva'!$D$17,IF(H24>'Tab IR Progressiva'!$A$16,H24*'Tab IR Progressiva'!$C$16-'Tab IR Progressiva'!$D$16,IF(H24>'Tab IR Progressiva'!$A$15,H24*'Tab IR Progressiva'!$C$15-'Tab IR Progressiva'!$D$15,IF(H24>'Tab IR Progressiva'!$A$14,H24*'Tab IR Progressiva'!$C$14-'Tab IR Progressiva'!$D$14,0)))))","v":0},null,null,"IR Mensal - Progressivo",null,null,null,null,{"$f":"IF(P24=\"\",\"\",IF(P24>'Tab IR Progressiva'!$A$17,P24*'Tab IR Progressiva'!$C$17-'Tab IR Progressiva'!$D$17,IF(P24>'Tab IR Progressiva'!$A$16,P24*'Tab IR Progressiva'!$C$16-'Tab IR Progressiva'!$D$16,IF(P24>'Tab IR Progressiva'!$A$15,P24*'Tab IR Progressiva'!$C$15-'Tab IR Progressiva'!$D$15,IF(P24>'Tab IR Progressiva'!$A$14,P24*'Tab IR Progressiva'!$C$14-'Tab IR Progressiva'!$D$14,0)))))","v":0},null,null,"Dedução Máxima Permitida",null,null,null,null,1396.2]
[null,null,null,null,null,null,null,null,null,null,null,null,null,null,null,null,null,null,"Base Calculo IR Mensal",null,null,null,null,{"$f":"IF(X21=0,0,X21-X22-X23-X24)","v":0}]
[null,null,null,null,null,null,null,null,null,null,null,null,null,null,null,null,null,null,"IR Total - Progressivo",null,null,null,null,{"$f":"IF(X26=\"\",\"\",IF(X26>'Tab IR Progressiva'!$A$17,X26*'Tab IR Progressiva'!$C$17-'Tab IR Progressiva'!$D$17,IF(X26>'Tab IR Progressiva'!$A$16,X26*'Tab IR Progressiva'!$C$16-'Tab IR Progressiva'!$D$16,IF(X26>'Tab IR Progressiva'!$A$15,X26*'Tab IR Progressiva'!$C$15-'Tab IR Progressiva'!$D$15,IF(X26>'Tab IR Progressiva'!$A$14,X26*'Tab IR Progressiva'!$C$14-'Tab IR Progressiva'!$D$14,0)))))","v":0}]
[]
[null,null,"Percentual IR mensal",null,null,null,null,{"$f":"IF(H19=0,\"\",(H25/H19))","v":""},null,null,"Percentual IR mensal",null,null,null,null,{"$f":"IF(P19=0,\"\",(P25/P19))","v":""},null,null,"Percentual IR mensal",null,null,null,null,{"$f":"IF(X21=0,\"\",(X27/X21))","v":""}]
[null,null,"(*) Calculo baseado na Declaração Anual Simplificada do Imposto de Renda."]
[null,null,"SIMULAÇÃO TABELA PROGRESSIVA - INSS  E  TABELA REGRESSIVA - PREVIDÊNCIA USIMINAS"]
[]
[null,null,"INSS",null,null,null,null,null,null,null,"PREVIDÊNCIA USIMINAS",null,null,null,null,null,null,null,"INSS E PREVIDÊNCIA USIMINAS"]
[]
[null,null,"Aposentadoria INSS",null,null,null,null,{"$f":"$L$7","v":0},null,null,"Benefício USIPREV",null,null,null,null,{"$f":"$L$9","v":0},null,null,"Renda Total",null,null,null,null,{"$f":"X21","v":0}]
[null,null,"Isenção 65 anos",null,null,null,null,{"$f":"H20","v":0},null,null,"Aliquota Inicial IR na Apos.",null,null,null,null,{"$f":"L13","v":0.1},null,null,"IR INSS Tab. Progressiva",null,null,null,null,{"$f":"H41","v":0}]
[null,null,"Desconto simplificado",null,null,null,null,{"$f":"H21","v":564.79999999999995},null,null,null,null,null,null,null,null,null,null,"IR Usiprev Tab. Regressiva",null,null,null,null,{"$f":"P38","v":0}]
[null,null,"(*) Dedução Padrão 20%",null,null,null,null,{"$f":"IF((H35*0.2)>=H39,H39,H35*0.2)","v":0},null,null,"IR Tab. Regressiva",null,null,null,null,{"$f":"IF(P35=\"\",\"\",P35*P36)","v":0},null,null,"IR Total",null,null,null,null,{"$f":"X36+X37","v":0}]
[null,null,"Dedução Máxima Permitida",null,null,null,null,1396.2]
[null,null,"Base Calculo IR Mensal",null,null,null,null,{"$f":"IF(L7=\"\",0,H35-H36-H37-H38)","v":0}]
[null,null,"IR Tab. Progressiva",null,null,null,null,{"$f":"IF(H40=\"\",\"\",IF(H40>'Tab IR Progressiva'!$A$17,H40*'Tab IR Progressiva'!$C$17-'Tab IR Progressiva'!$D$17,IF(H40>'Tab IR Progressiva'!$A$16,H40*'Tab IR Progressiva'!$C$16-'Tab IR Progressiva'!$D$16,IF(H40>'Tab IR Progressiva'!$A$15,H40*'Tab IR Progressiva'!$C$15-'Tab IR Progressiva'!$D$15,IF(H40>'Tab IR Progressiva'!$A$14,H40*'Tab IR Progressiva'!$C$14-'Tab IR Progressiva'!$D$14,0)))))","v":0}]
[]
[null,null,"Percentual IR mensal",null,null,null,null,{"$f":"IF(H35=0,\"\",(H41/H35))","v":""},null,null,"Percentual IR mensal",null,null,null,null,{"$f":"IF(P35=0,\"\",(P38/P35))","v":""},null,null,"Percentual Total IR mensal",null,null,null,null,{"$f":"IF(X35=0,\"\",X38/X35)","v":""}]
[]
[]
[null,"Resultado da simulação"]
[null,null,{"$f":"IF(L7=\"\",\"\",(IF(X29<=X43,AC54,AC55)))","v":""}]
[]
[]
[]
[]
[]
[]
[null,null,null,null,null,null,null,null,null,null,null,null,null,null,null,null,null,null,null,null,null,null,null,null,null,null,null,null,"IR calculado com as duas rendas na tabela progressiva ficou menor que o IR calculado com o benefício da Previcência Usiminas na tabela regressiva e a aposentadoria do INSS na tabela progressiva"]
[null,null,null,null,null,null,null,null,null,null,null,null,null,null,null,null,null,null,null,null,null,null,null,null,null,null,null,null,"IR calculado na tabela progressiva para a aposentadoria do INSS e tabela regressiva para o benefício da Previdencia Usiminas ficou menor que o IR calculado com as duas rendas na tabela progressiva."]
[]
[null,null,null,null,null,null,null,null,null,null,null,null,null,null,null,null,null,null,null,null,null,null,null,null,null,null,null,null,"Considerando que o IR calculado na tabela progressiva para as duas rendas está menor que o IR calculado nas tabelas progressiva para a aposentadoria do INSS  e regressiva para o benefício da Previdência Usiminas, entendemos que a melhor opção é manter o benefício da Previdência Usiminas na tabela progressiva."]
[null,null,null,null,null,null,null,null,null,null,null,null,null,null,null,null,null,null,null,null,null,null,null,null,null,null,null,null,"Considerando que a soma do IR calculado na tabela progressiva para a aposentadoria do INSS e tabela regressiva para o benefício da Previdencia Usiminas é menor que o IR calculado com as duas rendas na tabela progressiva, entendemos que a melhor opção é alterar  a renda da Previdência Usiminas para a tabela regressiva."]

{"sheet":"Tab IR Progressiva","index":1,"n_rows":27,"n_cols":14,"rows_kept":27,"cut":false,"hidden":true,"merged":[[9,0,9,3],[19,0,19,3],[0,0,0,3],[0,5,0,8],[0,10,0,13]]}
["Tabela Progressiva Mensal - De Janeiro a abril 2023",null,null,null,null,"Tabela Progressiva Mensal - De maio 2023 a janeiro 2024",null,null,null,null,"Tabela Progressiva Anual - Ano 2023"]
["Base de Cálculo em R$",null,"Alíquota","Parcela a Deduzir",null,"Base de Cálculo em R$",null,"Alíquota","Parcela a Deduzir",null,"Base de Cálculo em R$",null,"Alíquota","Parcela a Deduzir"]
["De","Até","%","do IR",null,"De","Até","%","do IR",null,"De","Até","%","do IR"]
[0,1903.98,"-","-",null,0,2112,"-","-",null,0,{"$f":"(B4*4+G4*8)","v":24511.919999999998},"-","-"]
[{"$f":"B4+0.01","v":1903.99},2826.65,7.4999999999999997E-2,142.80000000000001,null,{"$f":"G4+0.01","v":2112.0100000000002},2826.65,7.4999999999999997E-2,158.4,null,{"$f":"L4+0.01","v":24511.929999999997},{"$f":"(B5*4+G5*8)","v":33919.800000000003},7.4999999999999997E-2,1838.39]
[{"$f":"B5+0.01","v":2826.6600000000003},3751.05,0.15,354.8,null,{"$f":"G5+0.01","v":2826.6600000000003},3751.05,0.15,370.4,null,{"$f":"L5+0.01","v":33919.810000000005},{"$f":"(B6*4+G6*8)","v":45012.600000000006},0.15,4382.38]
[{"$f":"B6+0.01","v":3751.0600000000004},4664.68,0.22500000000000001,636.13,null,{"$f":"G6+0.01","v":3751.0600000000004},4664.68,0.22500000000000001,651.73,null,{"$f":"L6+0.01","v":45012.610000000008},{"$f":"(B7*4+G7*8)","v":55976.160000000003},0.22500000000000001,7758.32]
[{"$f":"B7","v":4664.68},0,0.27500000000000002,869.36,null,{"$f":"G7","v":4664.68},0,0.27500000000000002,884.96,null,{"$f":"L7","v":55976.160000000003},0,0.27500000000000002,10557.13]
[]
["Tabela Progressiva Mensal - A partir de fevereiro 2024"]
["Base de Cálculo em R$",null,"Alíquota","Parcela a Deduzir",null,16754.34,"Limite máximo dedução desconto simplificado (anual)"]
["De","Até","%","do IR",null,12,"número meses"]
[0,2259.1999999999998,"-","-",null,{"$f":"F11/F12","v":1396.1949999999999},"Limite máximo dedução desconto simplificado (mensal)"]
[{"$f":"B13+0.01","v":2259.21},2826.65,7.4999999999999997E-2,169.44]
[{"$f":"B14+0.01","v":2826.6600000000003},3751.05,0.15,381.44,null,"Desconto simplificado mensal ",null,528,"Até janeiro 2024"]
[{"$f":"B15+0.01","v":3751.0600000000004},4664.68,0.22500000000000001,662.77,null,"Desconto simplificado mensal ",null,564.79999999999995,"A partir de fevereiro 2024"]
[{"$f":"B16","v":4664.68},0,0.27500000000000002,896]
[]
[]
["Tabela Progressiva Anual"]
["Base de Cálculo em R$",null,"Alíquota","Parcela a Deduzir"]
["De","Até","%","do IR"]
[0,{"$f":"B13*12","v":27110.399999999998},"-","-"]
[{"$f":"B23+0.01","v":27110.409999999996},{"$f":"B14*12","v":33919.800000000003},7.4999999999999997E-2,{"$f":"D14*12","v":2033.28}]
[{"$f":"B24+0.01","v":33919.810000000005},45012.600000000006,0.15,{"$f":"D15*12","v":4577.28}]
[{"$f":"B25+0.01","v":45012.610000000008},55976.160000000003,0.22500000000000001,7953.24]
[{"$f":"B26","v":55976.160000000003},0,0.27500000000000002,10752]

{"sheet":"Tab IR Regressiva","index":2,"n_rows":9,"n_cols":2,"rows_kept":9,"cut":false,"hidden":true,"merged":[[1,0,1,1]]}
[]
["Tabela Regressiva de IR"]
["Alíquota %","Período de acumulação de cada contribuição"]
[35,"Inferior ou igual a 2 (dois) anos"]
[30,"Superior a 2 (dois) anos e inferior ou igual a 4 (quatro) anos"]
[25,"Superior a 4 (quatro) anos e inferior ou igual a 6 (seis) anos"]
[20,"Superior a 6 (seis) anos e inferior ou igual a 8 (oito) anos"]
[15,"Superior a 8 (oito) anos e inferior ou igual a 10 (dez) anos"]
[10,"Superior a 10 (dez) anos"]